fUSD/lending_fUSD_20260218
["ID","MTS","AMOUNT","RATE_DAILY","PERIOD"]
[405903875,1771413073923,-4426.84811139,0.0002739,7]
[405903876,1771413073932,-150.0,0.00027395,4]
[405903877,1771413073941,-1960.57987752,0.00027397,22]
[405903878,1771413074023,-527.7571331,0.00027397,2]
[405903879,1771413074033,-1000.0,0.00027397,30]
[405903880,1771413074043,-1000.0,0.00027397,30]
[405903881,1771413074052,-1000.0,0.00027397,30]
[405903882,1771413074061,-1000.0,0.00027397,30]
[405903883,1771413074071,-1000.0,0.00027397,30]
[405903884,1771413074080,-1000.0,0.00027397,30]
[405903885,1771413074089,-275.3907031,0.00027397,30]
[405903886,1771413074099,-220.0,0.00027397,2]
[405903887,1771413074108,-220.0,0.00027397,2]
[405903888,1771413074117,-220.0,0.00027397,2]
[405903889,1771413074126,-220.0,0.00027397,2]
[405903890,1771413074136,-252.58459976,0.00027397,2]
[405903891,1771413074145,-1000.0,0.00027397,120]
[405903892,1771413074154,-10000.0,0.00027397,120]
[405903893,1771413074163,-10000.0,0.00027397,120]
[405903894,1771413074172,-10000.0,0.00027397,120]
[405903895,1771413074181,-10000.0,0.00027397,120]
[405903896,1771413074190,-10000.0,0.00027397,120]
[405903897,1771413074199,-10000.0,0.00027397,120]
[405903898,1771413074209,-10000.0,0.00027397,120]
[405903899,1771413074219,-10000.0,0.00027397,120]
[405903900,1771413074228,-10000.0,0.00027397,120]
[405903901,1771413074238,-10000.0,0.00027397,120]
[405903902,1771413074247,-10000.0,0.00027397,120]
[405903903,1771413074256,-10000.0,0.00027397,120]
[405903904,1771413074266,-1000.0,0.00027397,20]
[405903905,1771413074275,-520.57,0.00027397,2]
[405903906,1771413074284,-1503.4,0.00027397,2]
[405903907,1771413074293,-487.055826,0.00027397,2]
[405903908,1771413074303,-487.055826,0.00027397,2]
[405903909,1771413074312,-487.055826,0.00027397,2]
[405903910,1771413074322,-487.055826,0.00027397,2]
[405903911,1771413074332,-487.055826,0.00027397,2]
[405903912,1771413074342,-487.055826,0.00027397,2]
[405903913,1771413074351,-487.055826,0.00027397,2]
[405903914,1771413074360,-487.055826,0.00027397,2]
[405903915,1771413074370,-487.055826,0.00027397,2]
[405903916,1771413074379,-487.055826,0.00027397,2]
[405903917,1771413074388,-487.055826,0.00027397,2]
[405903918,1771413074397,-487.055826,0.00027397,2]
[405903919,1771413074406,-487.055826,0.00027397,2]
[405903920,1771413074416,-487.055826,0.00027397,2]
[405903921,1771413074425,-487.055826,0.00027397,2]
[405903922,1771413074434,-487.055826,0.00027397,2]
[405903923,1771413074443,-487.055826,0.00027397,2]
[405903924,1771413074452,-487.055826,0.00027397,2]
[405903925,1771413074462,-487.055826,0.00027397,2]
[405903926,1771413074471,-487.055835,0.00027397,2]
[405903927,1771413074481,-300.0,0.00027397,2]
[405903928,1771413074491,-1721.830843,0.00027397,2]
[405903929,1771413074500,-1721.830843,0.00027397,2]
[405903930,1771413074509,-1721.830843,0.00027397,2]
[405903931,1771413074519,-1721.830843,0.00027397,2]
[405903932,1771413074528,-1721.830843,0.00027397,2]
[405903933,1771413074537,-1721.830843,0.00027397,2]
[405903934,1771413074546,-1721.830843,0.00027397,2]
[405903935,1771413074556,-1721.830843,0.00027397,2]
[405903936,1771413074566,-1721.830843,0.00027397,2]
[405903937,1771413074577,-1721.830843,0.00027397,2]
[405903938,1771413074586,-1721.830843,0.00027397,2]
[405903939,1771413074596,-1721.830843,0.00027397,2]
[405903940,1771413074606,-1721.830843,0.00027397,2]
[405903941,1771413074616,-1721.830843,0.00027397,2]
[405903942,1771413074626,-1721.830843,0.00027397,2]
[405903943,1771413074636,-1721.830843,0.00027397,2]
[405903944,1771413074645,-1721.830843,0.00027397,2]
[405903945,1771413074656,-1721.830843,0.00027397,2]
[405903946,1771413074668,-1721.830843,0.00027397,2]
[405903947,1771413074677,-1721.83084,0.00027397,2]
[405903948,1771413074686,-1483.627365,0.00027397,2]
[405903949,1771413074697,-1483.627365,0.00027397,2]
[405903950,1771413074707,-1483.627365,0.00027397,2]
[405903951,1771413074716,-1483.627365,0.00027397,2]
[405903952,1771413074727,-1483.627365,0.00027397,2]
[405903953,1771413074736,-1483.627365,0.00027397,2]
[405903954,1771413074746,-1483.627365,0.00027397,2]
[405903955,1771413074755,-1483.627365,0.00027397,2]
[405903956,1771413074764,-1483.627365,0.00027397,2]
[405903957,1771413074774,-1483.627365,0.00027397,2]
[405903958,1771413074783,-1483.627365,0.00027397,2]
[405903959,1771413074792,-1483.627365,0.00027397,2]
[405903960,1771413074801,-1483.627365,0.00027397,2]
[405903961,1771413074811,-1483.627365,0.00027397,2]
[405903962,1771413074824,-1483.627365,0.00027397,2]
[405903963,1771413074833,-1483.627365,0.00027397,2]
[405903964,1771413074843,-1483.627365,0.00027397,2]
[405903965,1771413074853,-1483.627365,0.00027397,2]
[405903966,1771413074863,-1483.627365,0.00027397,2]
[405903967,1771413074872,-1483.627363,0.00027397,2]
[405903968,1771413074881,-151.0,0.00027397,2]
[405903969,1771413074893,-151.0,0.00027397,2]
[405903970,1771413074903,-151.0,0.00027397,2]
[405903971,1771413074912,-160.857364,0.00027397,2]
[405903972,1771413074921,-151.50086364,0.00027397,5]
[405903973,1771413074930,-211.85443382,0.00027397,4]
[405903974,1771413074939,-672.56232672,0.00027432,102]
[405903975,1771413074948,-177.82904373,0.00027438,7]
[405903976,1771413074957,-219.72153389,0.00027438,7]
[405903977,1771413074966,-332.18764945,0.00027438,7]
[405903978,1771413074976,-150.0,0.000275,7]
[405903979,1771413074986,-201.6923428,0.000275,2]
[405903980,1771413074997,-550.97761121,0.000275,2]
[405903981,1771413075007,-875.17,0.000275,15]
[405903982,1771413075016,-150.0,0.00027568,7]
[405903983,1771413075026,-150.0,0.00027577,7]
[405903984,1771413075037,-150.0,0.00027597,7]
[405903985,1771413075046,-150.0,0.00027607,7]
[405903986,1771413075056,-177.82904373,0.00027623,7]
[405903987,1771413075066,-219.72153389,0.00027623,7]
[405903988,1771413075075,-332.18764945,0.00027623,7]
[405903989,1771413075083,-150.0,0.0002763,7]
[405903990,1771413075094,-575.0,0.00027677,12]
[405903991,1771413075103,-150.0,0.00027721,7]
[405903992,1771413075112,-672.56232672,0.00027744,106]
[405903993,1771413075121,-150.0,0.00027771,7]
[405903994,1771413075130,-984.07924276,0.000278,30]
[405903995,1771413075139,-177.82904373,0.00027808,7]
[405903996,1771413075148,-219.72153389,0.00027808,7]
[405903997,1771413075158,-332.18764945,0.00027808,7]
[405903998,1771413075167,-150.0,0.00027815,7]
[405903999,1771413075176,-684.0,0.00027825,120]
[405904000,1771413075185,-150.0,0.00027831,7]
[405904001,1771413075196,-150.0,0.00027831,7]
[405904002,1771413075207,-500.0,0.00027864,14]
[405904003,1771413075216,-332.42436172,0.00027864,14]
[405904004,1771413075225,-150.0,0.00027865,7]
[405904005,1771413075239,-155.14,0.00027945,91]
[405904006,1771413075252,-150.0,0.00027975,7]
[405904007,1771413075262,-177.82904373,0.00027993,7]
[405904008,1771413075271,-219.72153389,0.00027993,7]
[405904009,1771413075281,-332.18764945,0.00027993,7]
[405904010,1771413075291,-150.0,0.00027993,7]
[405904011,1771413075301,-47773.49002844,0.00028,2]
[405904012,1771413075311,-160.0,0.00028,2]
[405904013,1771413075323,-173.57638878,0.00028,10]
[405904014,1771413075334,-173.57638878,0.00028,10]
[405904015,1771413075345,-500.0,0.00028,120]
[405904016,1771413075354,-160.0,0.00028,10]
[405904017,1771413075364,-160.0,0.00028,10]
[405904018,1771413075374,-160.0,0.00028,10]
[405904019,1771413075384,-150.0,0.00028033,7]
[405904020,1771413075394,-150.0,0.00028054,7]
[405904021,1771413075404,-160.88604519,0.00028057,110]
[405904022,1771413075414,-224.18744224,0.00028057,110]
[405904023,1771413075424,-150.0,0.00028095,7]
[405904024,1771413075435,-150.0,0.000281,7]
[405904025,1771413075445,-500.0,0.00028153,120]
[405904026,1771413075455,-177.82904373,0.00028178,7]
[405904027,1771413075465,-219.72153389,0.00028178,7]
[405904028,1771413075475,-150.0,0.00028178,7]
[405904029,1771413075484,-332.18764945,0.00028178,7]
[405904030,1771413075494,-150.0,0.00028178,7]
[405904031,1771413075504,-150.0,0.00028251,7]
[405904032,1771413075514,-150.0,0.00028278,7]
[405904033,1771413075525,-150.0,0.00028278,7]
[405904034,1771413075535,-1098.96827476,0.00028286,5]
[405904035,1771413075545,-1159.33833103,0.00028297,120]
[405904036,1771413075555,-575.0,0.00028323,13]
[405904037,1771413075565,-150.0,0.00028335,7]
[405904038,1771413075574,-200.0,0.0002835,120]
[405904039,1771413075584,-177.82904373,0.00028363,7]
[405904040,1771413075594,-219.72153389,0.00028363,7]
[405904041,1771413075604,-332.18764945,0.00028363,7]
[405904042,1771413075613,-150.0,0.00028382,7]
[405904043,1771413075622,-439.0,0.000284,120]
[405904044,1771413075632,-150.0,0.0002841,7]
[405904045,1771413075642,-1400.0,0.00028412,14]
[405904046,1771413075652,-150.0,0.00028469,7]
[405904047,1771413075663,-150.0,0.00028469,7]
[405904048,1771413075672,-150.0,0.00028469,7]
[405904049,1771413075682,-167.38,0.00028493,2]
[405904050,1771413075691,-150.0,0.00028501,7]
[405904051,1771413075700,-150.0,0.00028544,2]
[405904052,1771413075710,-177.82904373,0.00028548,7]
[405904053,1771413075719,-219.72153389,0.00028548,7]
[405904054,1771413075729,-332.18764945,0.00028548,7]
[405904055,1771413075738,-150.0,0.0002857,7]
[405904056,1771413075747,-1222.47,0.00028571,30]
[405904057,1771413075757,-150.0,0.00028585,7]
[405904058,1771413075766,-150.0,0.00028687,7]
[405904059,1771413075775,-896.77747135,0.00028711,2]
[405904060,1771413075784,-150.0,0.00028724,7]
[405904061,1771413075794,-150.0,0.00028724,7]
[405904062,1771413075804,-177.82904373,0.00028734,7]
[405904063,1771413075814,-219.72153389,0.00028734,7]
[405904064,1771413075827,-332.18764945,0.00028734,7]
[405904065,1771413075837,-4483.28,0.00028747,2]
[405904066,1771413075847,-495.44203276,0.00028767,2]
[405904067,1771413075858,-150.0,0.00028789,7]
[405904068,1771413075867,-262.0,0.000288,36]
[405904069,1771413075876,-350.0,0.000288,36]
[405904070,1771413075885,-350.0,0.000288,36]
[405904071,1771413075897,-350.0,0.000288,36]
[405904072,1771413075906,-350.0,0.000288,36]
[405904073,1771413075916,-180.0,0.000288,36]
[405904074,1771413075925,-150.0,0.000288,36]
[405904075,1771413075934,-150.0,0.000288,36]
[405904076,1771413075943,-240.0,0.000288,36]
[405904077,1771413075952,-217.0,0.000288,36]
[405904078,1771413075961,-200.0,0.000288,36]
[405904079,1771413075971,-200.0,0.000288,36]
[405904080,1771413075980,-200.0,0.000288,36]
[405904081,1771413075989,-230.0,0.000288,36]
[405904082,1771413075999,-400.0,0.000288,36]
[405904083,1771413076008,-400.0,0.000288,36]
[405904084,1771413076017,-400.0,0.000288,36]
[405904085,1771413076027,-400.0,0.000288,36]
[405904086,1771413076036,-195.0,0.000288,36]
[405904087,1771413076046,-250.0,0.000288,36]
[405904088,1771413076056,-250.0,0.000288,36]
[405904089,1771413076065,-250.0,0.000288,36]
[405904090,1771413076075,-250.0,0.000288,36]
[405904091,1771413076084,-190.0,0.000288,36]
[405904092,1771413076095,-150.0,0.00028805,7]
[405904093,1771413076104,-211.0,0.0002882,30]
[405904094,1771413076114,-150.0,0.00028826,7]
[405904095,1771413076123,-150.0,0.00028843,7]
[405904096,1771413076133,-150.0,0.00028857,7]
[405904097,1771413076142,-163.0,0.000289,20]
[405904098,1771413076151,-163.0,0.000289,21]
[405904099,1771413076160,-150.0,0.00028905,7]
[405904100,1771413076170,-177.82904373,0.00028919,7]
[405904101,1771413076180,-219.72153389,0.00028919,7]
[405904102,1771413076190,-332.18764945,0.00028919,7]
[405904103,1771413076200,-150.0,0.00028948,7]
[405904104,1771413076210,-575.0,0.00028969,13]
[405904105,1771413076220,-150.0,0.00028993,7]
[405904106,1771413076230,-503.56381156,0.00029,2]
[405904107,1771413076240,-160.0,0.00029,10]
[405904108,1771413076250,-2274.96251721,0.00029,120]
[405904109,1771413076261,-600.0,0.00029,2]
[405904110,1771413076270,-150.0,0.0002904,7]
[405904111,1771413076280,-177.82904373,0.00029104,7]
[405904112,1771413076290,-219.72153389,0.00029104,7]
[405904113,1771413076300,-332.18764945,0.00029104,7]
[405904114,1771413076311,-150.0,0.00029123,7]
[405904115,1771413076322,-150.0,0.00029171,7]
[405904116,1771413076334,-150.0,0.00029171,7]
[405904117,1771413076345,-150.0,0.00029196,7]
[405904118,1771413076355,-684.0,0.00029216,120]
[405904119,1771413076365,-150.0,0.00029217,7]
[405904120,1771413076375,-150.0,0.00029242,7]
[405904121,1771413076385,-31546.82,0.00029262,2]
[405904122,1771413076395,-150.0,0.00029274,7]
[405904123,1771413076405,-177.82904373,0.00029289,7]
[405904124,1771413076415,-219.72153389,0.00029289,7]
[405904125,1771413076424,-332.18764945,0.00029289,7]
[405904126,1771413076435,-150.0,0.00029342,7]
[405904127,1771413076446,-150.0,0.00029395,7]
[405904128,1771413076456,-655.64412057,0.000294,5]
[405904129,1771413076466,-150.0,0.000294,7]
[405904130,1771413076476,-500.0,0.00029418,120]
[405904131,1771413076486,-250.0,0.00029466,36]
[405904132,1771413076497,-250.0,0.00029466,36]
[405904133,1771413076507,-250.0,0.00029466,36]
[405904134,1771413076517,-258.0,0.00029466,36]
[405904135,1771413076528,-177.82904373,0.00029474,7]
[405904136,1771413076539,-219.72153389,0.00029474,7]
[405904137,1771413076549,-332.18764945,0.00029474,7]
[405904138,1771413076559,-43341.99526726,0.000295,120]
[405904139,1771413076569,-500.0,0.00029508,14]
[405904140,1771413076579,-150.0,0.00029509,7]
[405904141,1771413076590,-150.0,0.00029535,7]
[405904142,1771413076601,-150.0,0.0002956,7]
[405904143,1771413076611,-920.84,0.00029565,30]
[405904144,1771413076621,-150.0,0.00029591,7]
[405904145,1771413076631,-150.0,0.00029603,7]
[405904146,1771413076640,-575.0,0.00029615,14]
[405904147,1771413076651,-150.0,0.00029618,7]
[405904148,1771413076661,-150.0,0.00029618,7]
[405904149,1771413076671,-177.82904373,0.00029659,7]
[405904150,1771413076681,-219.72153389,0.00029659,7]
[405904151,1771413076691,-332.18764945,0.00029659,7]
[405904152,1771413076702,-150.0,0.00029659,7]
[405904153,1771413076712,-9467.27196271,0.00029698,2]
[405904154,1771413076722,-150.0,0.00029744,7]
[405904155,1771413076732,-150.0,0.00029778,7]
[405904156,1771413076742,-150.0,0.00029778,7]
[405904157,1771413076751,-150.0,0.00029807,7]
[405904158,1771413076762,-150.0,0.00029842,7]
[405904159,1771413076772,-177.82904373,0.00029844,7]
[405904160,1771413076782,-219.72153389,0.00029844,7]
[405904161,1771413076792,-332.18764945,0.00029844,7]
[405904162,1771413076801,-2289.69,0.00029896,2]
[405904163,1771413076811,-79120.88866613,0.000299,2]
[405904164,1771413076825,-617.0,0.00029912,2]
[405904165,1771413076835,-1164.0,0.00029912,2]
[405904166,1771413076846,-1275.0,0.00029912,2]
[405904167,1771413076858,-1209.0,0.00029912,2]
[405904168,1771413076868,-5973.0,0.00029912,2]
[405904169,1771413076878,-2452.0,0.00029912,2]
[405904170,1771413076891,-150.0,0.00029965,7]
[405904171,1771413076900,-150.0,0.00029971,2]
[405904172,1771413076910,-150.0,0.00029979,7]
[405904173,1771413076920,-237.95780168,0.0002999,2]
[405904174,1771413076930,-150.0,0.00029996,7]
[405904175,1771413076941,-461.75,0.00029997,14]
[405904176,1771413076951,-181.25489891,0.0003,120]
[405904177,1771413076961,-8400.82432326,0.0003,3]
[405904178,1771413076971,-337.88466661,0.0003,120]
[405904179,1771413076981,-19928.72671892,0.0003,2]
[405904180,1771413076991,-311.96573233,0.0003,120]
[405904181,1771413077001,-2040.68809719,0.0003,120]
[405904182,1771413077011,-320.29407978,0.0003,2]
[405904183,1771413077020,-1823.34357867,0.0003,2]
[405904184,1771413077030,-400.0,0.0003,20]
[405904185,1771413077040,-515.68486469,0.0003,30]
[405904186,1771413077050,-163.5416964,0.0003,2]
[405904187,1771413077059,-256.46221764,0.0003,15]
[405904188,1771413077069,-3000.0,0.0003,4]
[405904189,1771413077079,-594.00647254,0.0003,7]
[405904190,1771413077088,-736.0,0.0003,120]
[405904191,1771413077099,-160.0,0.0003,3]
[405904192,1771413077109,-500.0,0.0003,120]
[405904193,1771413077119,-150.0,0.0003,2]
[405904194,1771413077129,-1000.0,0.0003,120]
[405904195,1771413077139,-272.68,0.0003,2]
[405904196,1771413077149,-753.53,0.0003,21]
[405904197,1771413077159,-117073.3277407,0.0003,5]
[405904198,1771413077168,-415.27427261,0.0003,120]
[405904199,1771413077178,-1000.0,0.0003,120]
[405904200,1771413077187,-500.0,0.0003,120]
[405904201,1771413077197,-291.0,0.0003,30]
[405904202,1771413077207,-2816.5856001,0.0003,120]
[405904203,1771413077217,-215.0,0.0003,120]
[405904204,1771413077226,-6867.48,0.0003,14]
[405904205,1771413077236,-160.0,0.0003,7]
[405904206,1771413077246,-1496.69960123,0.0003,60]
[405904207,1771413077256,-160.4,0.0003,2]
[405904208,1771413077266,-160.0,0.0003,120]
[405904209,1771413077275,-160.0,0.0003,120]
[405904210,1771413077285,-160.0,0.0003,7]
[405904211,1771413077295,-160.0,0.0003,7]
[405904212,1771413077305,-173.62051493,0.0003,7]
[405904213,1771413077314,-152.73,0.0003,2]
[405904214,1771413077324,-152.73,0.0003,2]
[405904215,1771413077334,-152.73,0.0003,2]
[405904216,1771413077345,-152.73,0.0003,2]
[405904217,1771413077356,-152.73,0.0003,2]
[405904218,1771413077366,-152.73,0.0003,2]
[405904219,1771413077375,-152.73,0.0003,2]
[405904220,1771413077386,-152.73,0.0003,2]
[405904221,1771413077396,-152.73,0.0003,2]
[405904222,1771413077406,-152.73,0.0003,2]
[405904223,1771413077416,-152.73,0.0003,2]
[405904224,1771413077426,-152.73,0.0003,2]
[405904225,1771413077436,-152.73,0.0003,2]
[405904226,1771413077447,-152.73,0.0003,2]
[405904227,1771413077457,-152.73,0.0003,2]
[405904228,1771413077467,-152.73,0.0003,2]
[405904229,1771413077477,-152.73,0.0003,2]
[405904230,1771413077487,-152.73,0.0003,2]
[405904231,1771413077498,-152.73,0.0003,2]
[405904232,1771413077508,-152.73,0.0003,2]
[405904233,1771413077519,-152.73,0.0003,2]
[405904234,1771413077529,-152.73,0.0003,2]
[405904235,1771413077539,-152.73,0.0003,2]
[405904236,1771413077549,-152.73,0.0003,2]
[405904237,1771413077559,-152.73,0.0003,2]
[405904238,1771413077568,-152.73,0.0003,2]
[405904239,1771413077578,-152.73,0.0003,2]
[405904240,1771413077588,-152.73,0.0003,2]
[405904241,1771413077600,-152.73,0.0003,2]
[405904242,1771413077609,-152.73,0.0003,2]
[405904243,1771413077619,-152.73,0.0003,2]
[405904244,1771413077629,-152.73,0.0003,2]
[405904245,1771413077638,-152.73,0.0003,2]
[405904246,1771413077648,-152.73,0.0003,2]
[405904247,1771413077658,-152.73,0.0003,2]
[405904248,1771413077672,-152.73,0.0003,2]
[405904249,1771413077681,-152.73,0.0003,2]
[405904250,1771413077691,-152.73,0.0003,2]
[405904251,1771413077700,-152.73,0.0003,2]
[405904252,1771413077710,-152.73,0.0003,2]
[405904253,1771413077720,-152.73,0.0003,2]
[405904254,1771413077729,-152.73,0.0003,2]
[405904255,1771413077739,-152.73,0.0003,2]
[405904256,1771413077749,-152.73,0.0003,2]
[405904257,1771413077759,-152.73,0.0003,2]
[405904258,1771413077769,-152.73,0.0003,2]
[405904259,1771413077780,-152.73,0.0003,2]
[405904260,1771413077791,-152.73,0.0003,2]
[405904261,1771413077801,-152.73,0.0003,2]
[405904262,1771413077812,-152.73,0.0003,2]
[405904263,1771413077823,-152.73,0.0003,2]
[405904264,1771413077833,-150.0,0.0003001,7]
[405904265,1771413077844,-177.82904373,0.00030029,7]
[405904266,1771413077855,-219.72153389,0.00030029,7]
[405904267,1771413077865,-332.18764945,0.00030029,7]
[405904268,1771413077875,-1400.0,0.00030056,14]
[405904269,1771413077885,-150.0,0.00030065,7]
[405904270,1771413077897,-150.0,0.00030065,7]
[405904271,1771413077908,-150.0,0.00030075,7]
[405904272,1771413077918,-1000.0,0.00030124,30]
[405904273,1771413077927,-1077.09677605,0.0003013,2]
[405904274,1771413077937,-182.82612915,0.0003013,120]
[405904275,1771413077947,-202.17259899,0.0003013,30]
[405904276,1771413077956,-13895.31371931,0.0003013,2]
[405904277,1771413077966,-636.08323306,0.0003013,2]
[405904278,1771413077976,-673.17206975,0.0003013,120]
[405904279,1771413077987,-202.35392672,0.0003013,2]
[405904280,1771413077996,-162.51939149,0.0003013,120]
[405904281,1771413078006,-7755.83520455,0.0003013,2]
[405904282,1771413078016,-166.58894592,0.0003013,20]
[405904283,1771413078027,-300.0,0.0003013,30]
[405904284,1771413078037,-1000.0,0.00030137,120]
[405904285,1771413078048,-1503.4,0.00030137,2]
[405904286,1771413078058,-297.656899,0.00030137,7]
[405904287,1771413078068,-297.656899,0.00030137,7]
[405904288,1771413078078,-297.656899,0.00030137,7]
[405904289,1771413078088,-297.656899,0.00030137,7]
[405904290,1771413078101,-297.656899,0.00030137,7]
[405904291,1771413078111,-297.656899,0.00030137,7]
[405904292,1771413078121,-297.656899,0.00030137,7]
[405904293,1771413078131,-297.656899,0.00030137,7]
[405904294,1771413078141,-297.656899,0.00030137,7]
[405904295,1771413078151,-297.656899,0.00030137,7]
[405904296,1771413078161,-297.656899,0.00030137,7]
[405904297,1771413078171,-297.656899,0.00030137,7]
[405904298,1771413078181,-297.656899,0.00030137,7]
[405904299,1771413078191,-297.656899,0.00030137,7]
[405904300,1771413078202,-297.656899,0.00030137,7]
[405904301,1771413078212,-297.656899,0.00030137,7]
[405904302,1771413078222,-297.656899,0.00030137,7]
[405904303,1771413078233,-297.656899,0.00030137,7]
[405904304,1771413078243,-297.656899,0.00030137,7]
[405904305,1771413078254,-297.6569,0.00030137,7]
[405904306,1771413078264,-1000.0,0.00030137,2]
[405904307,1771413078274,-14069.22723666,0.000302,2]
[405904308,1771413078285,-222.0791225,0.000302,120]
[405904309,1771413078297,-177.82904373,0.00030214,7]
[405904310,1771413078308,-150.0,0.00030214,7]
[405904311,1771413078318,-219.72153389,0.00030214,7]
[405904312,1771413078330,-150.0,0.00030214,7]
[405904313,1771413078340,-332.18764945,0.00030214,7]
[405904314,1771413078582,-150.0,0.00030214,7]
[405904315,1771413078593,-150.0,0.00030214,7]
[405904316,1771413078605,-575.0,0.00030261,14]
[405904317,1771413078615,-150.0,0.00030288,7]
[405904318,1771413078625,-5133.89682485,0.00030296,2]
[405904319,1771413078635,-150.0,0.00030339,7]
[405904320,1771413078644,-177.82904373,0.00030399,7]
[405904321,1771413078654,-219.72153389,0.00030399,7]
[405904322,1771413078664,-332.18764945,0.00030399,7]
[405904323,1771413078674,-168.55,0.00030411,120]
[405904324,1771413078683,-150.0,0.00030418,7]
[405904325,1771413078693,-150.0,0.00030432,7]
[405904326,1771413078703,-150.0,0.00030449,7]
[405904327,1771413078713,-150.0,0.00030492,7]
[405904328,1771413078723,-150.0,0.00030512,7]
[405904329,1771413078733,-150.0,0.00030512,7]
[405904330,1771413078743,-177.82904373,0.00030584,7]
[405904331,1771413078752,-219.72153389,0.00030584,7]
[405904332,1771413078762,-332.18764945,0.00030584,7]
[405904333,1771413078771,-500.0,0.000306,30]
[405904334,1771413078781,-150.0,0.00030621,7]
[405904335,1771413078791,-150.0,0.0003065,7]
[405904336,1771413078800,-684.0,0.00030677,120]
[405904337,1771413078812,-500.0,0.00030683,120]
[405904338,1771413078825,-150.0,0.00030684,7]
[405904339,1771413078835,-1000.0,0.00030685,2]
[405904340,1771413078847,-150.0,0.00030713,7]
[405904341,1771413078858,-150.0,0.00030735,7]
[405904342,1771413078868,-177.82904373,0.00030769,7]
[405904343,1771413078878,-219.72153389,0.00030769,7]
[405904344,1771413078887,-332.18764945,0.00030769,7]
[405904345,1771413078899,-250.0,0.000308,30]
[405904346,1771413078909,-500.0,0.0003081,30]
[405904347,1771413078919,-150.0,0.00030825,7]
[405904348,1771413078930,-1613.95742232,0.0003084,2]
[405904349,1771413078939,-211.0,0.0003084,30]
[405904350,1771413078949,-150.0,0.00030868,7]
[405904351,1771413078959,-150.0,0.00030893,7]
[405904352,1771413078968,-160.0,0.000309,120]
[405904353,1771413078978,-500.0,0.000309,30]
[405904354,1771413078988,-500.0,0.000309,30]
[405904355,1771413078997,-575.0,0.00030907,15]
[405904356,1771413079006,-150.0,0.00030908,7]
[405904357,1771413079015,-500.0,0.0003091,30]
[405904358,1771413079024,-150.0,0.00030919,7]
[405904359,1771413079033,-1222.47,0.0003092,30]
[405904360,1771413079042,-79262.67165379,0.0003095,2]
[405904361,1771413079051,-177.82904373,0.00030954,7]
[405904362,1771413079060,-219.72153389,0.00030954,7]
[405904363,1771413079069,-332.18764945,0.00030954,7]
[405904364,1771413079079,-150.0,0.00030959,7]
[405904365,1771413079089,-150.0,0.00030959,7]
[405904366,1771413079102,-393.48,0.00030997,30]
[405904367,1771413079111,-308.91,0.00031,120]
[405904368,1771413079122,-344.05321277,0.00031,5]
[405904369,1771413079131,-51723.36233225,0.00031,2]
[405904370,1771413079141,-2448.44604378,0.00031,30]
[405904371,1771413079152,-6204.22,0.00031,7]
[405904372,1771413079162,-160.0,0.00031,120]
[405904373,1771413079172,-210.8,0.00031,4]
[405904374,1771413079181,-650.0,0.00031,2]